{"text_format":"1","workbook":"xlsx","n_sheets":2,"sheets":["写真整理","Sheet1"],"not_rendered":{"charts":0,"images":0,"macros":1,"external_links":0,"defined_names":2,"comments":1,"pivot_tables":0},"unopened":[],"bounds":{"document_bytes":16777216,"sheet_cells":100000,"rows_first":2000,"rows_last":500,"rows_between":2000,"halvings":0,"cell_chars":16384,"cell_head_chars":4096},"cells_cut":0,"cells_raw":0,"read":"whole","date_system":"1900"}

{"sheet":"写真整理","index":0,"n_rows":726,"n_cols":42,"rows_kept":726,"cut":false,"hidden":false,"merged":[[718,27,718,29],[718,30,719,34],[720,27,720,29],[720,30,721,34],[722,27,722,29],[722,30,723,34],[700,27,700,29],[700,30,701,34],[702,27,702,29],[702,30,703,34],[712,27,712,29],[712,30,713,34],[714,27,714,29],[714,30,715,34],[716,27,716,29],[716,30,717,34],[682,27,682,29],[682,30,683,34],[692,27,692,29],[692,30,693,34],[694,27,694,29],[694,30,695,34],[696,27,696,29],[696,30,697,34],[698,27,698,29],[698,30,699,34],[672,27,672,29],[672,30,673,34],[674,27,674,29],[674,30,675,34],[676,27,676,29],[676,30,677,34],[678,27,678,29],[678,30,679,34],[680,27,680,29],[680,30,681,34],[630,27,630,29],[630,30,631,34],[632,27,632,29],[632,30,633,34],[634,27,634,29],[634,30,635,34],[636,27,636,29],[636,30,637,34],[646,27,646,29],[646,30,647,34],[588,27,588,29],[588,30,589,34],[590,27,590,29],[590,30,591,34],[606,27,606,29],[606,30,607,34],[608,27,608,29],[608,30,609,34],[610,27,610,29],[610,30,611,34],[570,27,570,29],[570,30,571,34],[580,27,580,29],[580,30,581,34],[582,27,582,29],[582,30,583,34],[584,27,584,29],[584,30,585,34],[586,27,586,29],[586,30,587,34],[560,27,560,29],[560,30,561,34],[562,27,562,29],[562,30,563,34],[564,27,564,29],[564,30,565,34],[566,27,566,29],[566,30,567,34],[568,27,568,29],[568,30,569,34],[542,27,542,29],[542,30,543,34],[544,27,544,29],[544,30,545,34],[546,27,546,29],[546,30,547,34],[548,27,548,29],[548,30,549,34],[550,27,550,29],[550,30,551,34],[500,27,500,29],[500,30,501,34],[502,27,502,29],[502,30,503,34],[504,27,504,29],[504,30,505,34],[514,27,514,29],[514,30,515,34],[516,27,516,29],[516,30,517,34],[458,27,458,29],[458,30,459,34],[474,27,474,29],[474,30,475,34],[476,27,476,29],[476,30,477,34],[478,27,478,29],[478,30,479,34],[480,27,480,29],[480,30,481,34],[448,27,448,29],[448,30,449,34],[450,27,450,29],[450,30,451,34],[452,27,452,29],[452,30,453,34],[454,27,454,29],[454,30,455,34],[456,27,456,29],[456,30,457,34],[430,27,430,29],[430,30,431,34],[432,27,432,29],[432,30,433,34],[434,27,434,29],[434,30,435,34],[436,27,436,29],[436,30,437,34],[438,27,438,29],[438,30,439,34],[412,27,412,29],[412,30,413,34],[414,27,414,29],[414,30,415,34],[416,27,416,29],[416,30,417,34],[418,27,418,29],[418,30,419,34],[428,27,428,29],[428,30,429,34],[370,27,370,29],[370,30,371,34],[372,27,372,29],[372,30,373,34],[382,27,382,29],[382,30,383,34],[384,27,384,29],[384,30,385,34],[386,27,386,29],[386,30,387,34],[352,27,352,29],[352,30,353,34],[362,27,362,29],[362,30,363,34],[364,27,364,29],[364,30,365,34],[366,27,366,29],[366,30,367,34],[368,27,368,29],[368,30,369,34],[318,27,318,29],[318,30,319,34],[320,27,320,29],[320,30,321,34],[322,27,322,29],[322,30,323,34],[324,27,324,29],[324,30,325,34],[326,27,326,29],[326,30,327,34],[300,27,300,29],[300,30,301,34],[302,27,302,29],[302,30,303,34],[304,27,304,29],[304,30,305,34],[306,27,306,29],[306,30,307,34],[316,27,316,29],[316,30,317,34],[282,27,282,29],[282,30,283,34],[284,27,284,29],[284,30,285,34],[286,27,286,29],[286,30,287,34],[296,27,296,29],[296,30,297,34],[298,27,298,29],[298,30,299,34],[240,27,240,29],[240,30,241,34],[250,27,250,29],[250,30,251,34],[252,27,252,29],[252,30,253,34],[254,27,254,29],[254,30,255,34],[256,27,256,29],[256,30,257,34],[230,27,230,29],[230,30,231,34],[232,27,232,29],[232,30,233,34],[234,27,234,29],[234,30,235,34],[236,27,236,29],[236,30,237,34],[238,27,238,29],[238,30,239,34],[188,27,188,29],[188,30,189,34],[190,27,190,29],[190,30,191,34],[192,27,192,29],[192,30,193,34],[194,27,194,29],[194,30,195,34],[210,27,210,29],[210,30,211,34],[170,27,170,29],[170,30,171,34],[172,27,172,29],[172,30,173,34],[174,27,174,29],[174,30,175,34],[184,27,184,29],[184,30,185,34],[186,27,186,29],[186,30,187,34],[152,27,152,29],[152,30,153,34],[154,27,154,29],[154,30,155,34],[164,27,164,29],[164,30,165,34],[166,27,166,29],[166,30,167,34],[168,27,168,29],[168,30,169,34],[128,27,128,29],[128,30,129,34],[144,27,144,29],[144,30,145,34],[146,27,146,29],[146,30,147,34],[148,27,148,29],[148,30,149,34],[150,27,150,29],[150,30,151,34],[100,27,100,29],[100,30,101,34],[102,27,102,29],[102,30,103,34],[104,27,104,29],[104,30,105,34],[106,27,106,29],[106,30,107,34],[108,27,108,29],[108,30,109,34],[58,27,58,29],[58,30,59,34],[60,27,60,29],[60,30,61,34],[62,27,62,29],[62,30,63,34],[78,27,78,29],[78,30,79,34],[80,27,80,29],[80,30,81,34],[40,27,40,29],[40,30,41,34],[42,27,42,29],[42,30,43,34],[52,27,52,29],[52,30,53,34],[54,27,54,29],[54,30,55,34],[56,27,56,29],[56,30,57,34],[22,30,23,34],[32,27,32,29],[32,30,33,34],[34,27,34,29],[34,30,35,34],[36,27,36,29],[36,30,37,34],[38,27,38,29],[38,30,39,34],[704,1,705,5],[704,6,705,10],[706,1,723,18],[706,21,710,25],[711,21,723,25],[684,1,685,5],[684,6,685,10],[686,1,703,18],[686,21,690,25],[691,21,703,25],[661,32,661,33],[663,27,663,33],[664,1,665,5],[664,6,665,10],[666,1,683,18],[666,21,670,25],[671,21,683,25],[638,1,639,5],[638,6,639,10],[640,1,657,18],[640,21,644,25],[645,21,657,25],[648,27,648,29],[648,30,649,34],[650,27,650,29],[650,30,651,34],[652,27,652,29],[652,30,653,34],[654,27,654,29],[654,30,655,34],[656,27,656,29],[656,30,657,34],[618,1,619,5],[618,6,619,10],[620,1,637,18],[620,21,624,25],[625,21,637,25],[595,32,595,33],[597,27,597,33],[598,1,599,5],[598,6,599,10],[600,1,617,18],[600,21,604,25],[605,21,617,25],[612,27,612,29],[612,30,613,34],[614,27,614,29],[614,30,615,34],[616,27,616,29],[616,30,617,34],[626,27,626,29],[626,30,627,34],[628,27,628,29],[628,30,629,34],[572,1,573,5],[572,6,573,10],[574,1,591,18],[574,21,578,25],[579,21,591,25],[552,1,553,5],[552,6,553,10],[554,1,571,18],[554,21,558,25],[559,21,571,25],[529,32,529,33],[531,27,531,33],[532,1,533,5],[532,6,533,10],[534,1,551,18],[534,21,538,25],[539,21,551,25],[506,1,507,5],[506,6,507,10],[508,1,525,18],[508,21,512,25],[513,21,525,25],[518,27,518,29],[518,30,519,34],[520,27,520,29],[520,30,521,34],[522,27,522,29],[522,30,523,34],[524,27,524,29],[524,30,525,34],[540,27,540,29],[540,30,541,34],[486,1,487,5],[486,6,487,10],[488,1,505,18],[488,21,492,25],[493,21,505,25],[463,32,463,33],[465,27,465,33],[466,1,467,5],[466,6,467,10],[468,1,485,18],[468,21,472,25],[473,21,485,25],[482,27,482,29],[482,30,483,34],[484,27,484,29],[484,30,485,34],[494,27,494,29],[494,30,495,34],[496,27,496,29],[496,30,497,34],[498,27,498,29],[498,30,499,34],[440,1,441,5],[440,6,441,10],[442,1,459,18],[442,21,446,25],[447,21,459,25],[420,1,421,5],[420,6,421,10],[422,1,439,18],[422,21,426,25],[427,21,439,25],[397,32,397,33],[399,27,399,33],[400,1,401,5],[400,6,401,10],[402,1,419,18],[402,21,406,25],[407,21,419,25],[374,1,375,5],[374,6,375,10],[376,1,393,18],[376,21,380,25],[381,21,393,25],[388,27,388,29],[388,30,389,34],[390,27,390,29],[390,30,391,34],[392,27,392,29],[392,30,393,34],[408,27,408,29],[408,30,409,34],[410,27,410,29],[410,30,411,34],[354,1,355,5],[354,6,355,10],[356,1,373,18],[356,21,360,25],[361,21,373,25],[331,32,331,33],[333,27,333,33],[334,1,335,5],[334,6,335,10],[336,1,353,18],[336,21,340,25],[341,21,353,25],[342,27,342,29],[342,30,343,34],[344,27,344,29],[344,30,345,34],[346,27,346,29],[346,30,347,34],[348,27,348,29],[348,30,349,34],[350,27,350,29],[350,30,351,34],[308,1,309,5],[308,6,309,10],[310,1,327,18],[310,21,314,25],[315,21,327,25],[288,1,289,5],[288,6,289,10],[290,1,307,18],[290,21,294,25],[295,21,307,25],[265,32,265,33],[267,27,267,33],[268,1,269,5],[268,6,269,10],[270,1,287,18],[270,21,274,25],[275,21,287,25],[242,1,243,5],[242,6,243,10],[244,1,261,18],[244,21,248,25],[249,21,261,25],[258,27,258,29],[258,30,259,34],[260,27,260,29],[260,30,261,34],[276,27,276,29],[276,30,277,34],[278,27,278,29],[278,30,279,34],[280,27,280,29],[280,30,281,34],[222,1,223,5],[222,6,223,10],[224,1,241,18],[224,21,228,25],[229,21,241,25],[199,32,199,33],[201,27,201,33],[202,1,203,5],[202,6,203,10],[204,1,221,18],[204,21,208,25],[209,21,221,25],[212,27,212,29],[212,30,213,34],[214,27,214,29],[214,30,215,34],[216,27,216,29],[216,30,217,34],[218,27,218,29],[218,30,219,34],[220,27,220,29],[220,30,221,34],[176,1,177,5],[176,6,177,10],[178,1,195,18],[178,21,182,25],[183,21,195,25],[156,1,157,5],[156,6,157,10],[158,1,175,18],[158,21,162,25],[163,21,175,25],[133,32,133,33],[135,27,135,33],[136,1,137,5],[136,6,137,10],[138,1,155,18],[138,21,142,25],[143,21,155,25],[110,1,111,5],[110,6,111,10],[112,1,129,18],[112,21,116,25],[117,21,129,25],[118,27,118,29],[118,30,119,34],[120,27,120,29],[120,30,121,34],[122,27,122,29],[122,30,123,34],[124,27,124,29],[124,30,125,34],[126,27,126,29],[126,30,127,34],[90,1,91,5],[90,6,91,10],[92,1,109,18],[92,21,96,25],[97,21,109,25],[67,32,67,33],[69,27,69,33],[70,1,71,5],[70,6,71,10],[72,1,89,18],[72,21,76,25],[77,21,89,25],[82,27,82,29],[82,30,83,34],[84,27,84,29],[84,30,85,34],[86,27,86,29],[86,30,87,34],[88,27,88,29],[88,30,89,34],[98,27,98,29],[98,30,99,34],[46,1,63,18],[46,21,50,25],[51,21,63,25],[24,1,25,5],[24,6,25,10],[26,1,43,18],[26,21,30,25],[31,21,43,25],[1,32,1,33],[3,27,3,33],[4,1,5,5],[4,6,5,10],[6,1,23,18],[6,21,10,25],[11,21,23,25],[44,1,45,5],[44,6,45,10],[12,27,12,29],[14,27,14,29],[16,27,16,29],[16,30,17,34],[12,30,13,34],[14,30,15,34],[18,27,18,29],[18,30,19,34],[20,27,20,29],[20,30,21,34],[22,27,22,29]]}
[null,"（別添１）"]
[null,"作業写真整理帳",null,null,null,null,null,null,null,null,null,null,null,null,null,null,null,null,null,null,null,null,null,null,null,null,null,null,null,null,null,"No",1]
[]
[null,null,null,null,null,null,null,null,null,null,null,null,null,null,null,null,null,null,null,null,null,null,null,null,"組織名"]
[null,"写真番号："]
[]
[null,null,null,null,null,null,null,null,null,null,null,null,null,null,null,null,null,null,null,null,null,"活動項目をチェックする"]
[]
[]
[]
[]
[null,null,null,null,null,null,null,null,null,null,null,null,null,null,null,null,null,null,null,null,null,"取組内容"]
[null,null,null,null,null,null,null,null,null,null,null,null,null,null,null,null,null,null,null,null,null,null,null,null,null,null,null,null,null,null,null,null,null,null,null,null,null,null,null,null,"月日"]
[null,null,null,null,null,null,null,null,null,null,null,null,null,null,null,null,null,null,null,null,null,null,null,null,null,null,null,null,null,null,null,null,null,null,null,null,null,null,null,null,"場所"]
[null,null,null,null,null,null,null,null,null,null,null,null,null,null,null,null,null,null,null,null,null,null,null,null,null,null,null,null,null,null,null,null,null,null,null,null,null,null,null,null,"内容","刈払い作業"]
[null,null,null,null,null,null,null,null,null,null,null,null,null,null,null,null,null,null,null,null,null,null,null,null,null,null,null,null,null,null,null,null,null,null,null,null,null,null,null,null,null,"周囲確認作業"]
[null,null,null,null,null,null,null,null,null,null,null,null,null,null,null,null,null,null,null,null,null,null,null,null,null,null,null,null,null,null,null,null,null,null,null,null,null,null,null,null,null,"測量作業"]
[null,null,null,null,null,null,null,null,null,null,null,null,null,null,null,null,null,null,null,null,null,null,null,null,null,null,null,null,null,null,null,null,null,null,null,null,null,null,null,null,null,"搬出作業"]
[null,null,null,null,null,null,null,null,null,null,null,null,null,null,null,null,null,null,null,null,null,null,null,null,null,null,null,null,null,null,null,null,null,null,null,null,null,null,null,null,null,"粉砕作業"]
[null,null,null,null,null,null,null,null,null,null,null,null,null,null,null,null,null,null,null,null,null,null,null,null,null,null,null,null,null,null,null,null,null,null,null,null,null,null,null,null,null,"資機材の確認"]
[null,null,null,null,null,null,null,null,null,null,null,null,null,null,null,null,null,null,null,null,null,null,null,null,null,null,null,null,null,null,null,null,null,null,null,null,null,null,null,null,null,"チェンソー"]
[null,null,null,null,null,null,null,null,null,null,null,null,null,null,null,null,null,null,null,null,null,null,null,null,null,null,null,null,null,null,null,null,null,null,null,null,null,null,null,null,null,"刈払機"]
[null,null,null,null,null,null,null,null,null,null,null,null,null,null,null,null,null,null,null,null,null,null,null,null,null,null,null,null,null,null,null,null,null,null,null,null,null,null,null,null,null,"砂利"]
[null,null,null,null,null,null,null,null,null,null,null,null,null,null,null,null,null,null,null,null,null,null,null,null,null,null,null,null,null,null,null,null,null,null,null,null,null,null,null,null,null,"集積作業"]
[null,"写真番号：",null,null,null,null,null,null,null,null,null,null,null,null,null,null,null,null,null,null,null,null,null,null,null,null,null,null,null,null,null,null,null,null,null,null,null,null,null,null,null,"集積確認"]
[null,null,null,null,null,null,null,null,null,null,null,null,null,null,null,null,null,null,null,null,null,null,null,null,null,null,null,null,null,null,null,null,null,null,null,null,null,null,null,null,null,"作業確認"]
[null,null,null,null,null,null,null,null,null,null,null,null,null,null,null,null,null,null,null,null,null,"活動項目をチェックする",null,null,null,null,null,null,null,null,null,null,null,null,null,null,null,null,null,null,null,"安全ミーティング"]
[]
[]
[]
[]
[null,null,null,null,null,null,null,null,null,null,null,null,null,null,null,null,null,null,null,null,null,"取組内容",null,null,null,null,null,null,null,null,null,null,null,null,null,null,null,null,null,null,"種類","作業前集合写真"]
[null,null,null,null,null,null,null,null,null,null,null,null,null,null,null,null,null,null,null,null,null,null,null,null,null,null,null,null,null,null,null,null,null,null,null,null,null,null,null,null,null,"作業後集合写真"]
[null,null,null,null,null,null,null,null,null,null,null,null,null,null,null,null,null,null,null,null,null,null,null,null,null,null,null,null,null,null,null,null,null,null,null,null,null,null,null,null,null,"作業中写真"]
[null,null,null,null,null,null,null,null,null,null,null,null,null,null,null,null,null,null,null,null,null,null,null,null,null,null,null,null,null,null,null,null,null,null,null,null,null,null,null,null,null,"状況写真"]
[]
[]
[]
[null,null,null,null,null,null,null,null,null,null,null,null,null,null,null,null,null,null,null,null,null,null,null,null,null,null,null,null,null,null,null,null,null,null,null,null,null,null,null,null,"作業人数","2名"]
[null,null,null,null,null,null,null,null,null,null,null,null,null,null,null,null,null,null,null,null,null,null,null,null,null,null,null,null,null,null,null,null,null,null,null,null,null,null,null,null,null,"3名"]
[null,null,null,null,null,null,null,null,null,null,null,null,null,null,null,null,null,null,null,null,null,null,null,null,null,null,null,null,null,null,null,null,null,null,null,null,null,null,null,null,null,"4名"]
[null,null,null,null,null,null,null,null,null,null,null,null,null,null,null,null,null,null,null,null,null,null,null,null,null,null,null,null,null,null,null,null,null,null,null,null,null,null,null,null,null,"5名"]
[null,null,null,null,null,null,null,null,null,null,null,null,null,null,null,null,null,null,null,null,null,null,null,null,null,null,null,null,null,null,null,null,null,null,null,null,null,null,null,null,null,"6名"]
[null,null,null,null,null,null,null,null,null,null,null,null,null,null,null,null,null,null,null,null,null,null,null,null,null,null,null,null,null,null,null,null,null,null,null,null,null,null,null,null,null,"7名"]
[null,"写真番号：",null,null,null,null,null,null,null,null,null,null,null,null,null,null,null,null,null,null,null,null,null,null,null,null,null,null,null,null,null,null,null,null,null,null,null,null,null,null,null,"8名"]
[null,null,null,null,null,null,null,null,null,null,null,null,null,null,null,null,null,null,null,null,null,null,null,null,null,null,null,null,null,null,null,null,null,null,null,null,null,null,null,null,null,"9名"]
[null,null,null,null,null,null,null,null,null,null,null,null,null,null,null,null,null,null,null,null,null,"活動項目をチェックする",null,null,null,null,null,null,null,null,null,null,null,null,null,null,null,null,null,null,null,"10名"]
[null,null,null,null,null,null,null,null,null,null,null,null,null,null,null,null,null,null,null,null,null,null,null,null,null,null,null,null,null,null,null,null,null,null,null,null,null,null,null,null,null,"11名"]
[null,null,null,null,null,null,null,null,null,null,null,null,null,null,null,null,null,null,null,null,null,null,null,null,null,null,null,null,null,null,null,null,null,null,null,null,null,null,null,null,null,"12名"]
[null,null,null,null,null,null,null,null,null,null,null,null,null,null,null,null,null,null,null,null,null,null,null,null,null,null,null,null,null,null,null,null,null,null,null,null,null,null,null,null,null,"13名"]
[null,null,null,null,null,null,null,null,null,null,null,null,null,null,null,null,null,null,null,null,null,null,null,null,null,null,null,null,null,null,null,null,null,null,null,null,null,null,null,null,null,"14名"]
[null,null,null,null,null,null,null,null,null,null,null,null,null,null,null,null,null,null,null,null,null,"取組内容",null,null,null,null,null,null,null,null,null,null,null,null,null,null,null,null,null,null,null,"15名"]
[null,null,null,null,null,null,null,null,null,null,null,null,null,null,null,null,null,null,null,null,null,null,null,null,null,null,null,null,null,null,null,null,null,null,null,null,null,null,null,null,null,"16名"]
[null,null,null,null,null,null,null,null,null,null,null,null,null,null,null,null,null,null,null,null,null,null,null,null,null,null,null,null,null,null,null,null,null,null,null,null,null,null,null,null,null,"17名"]
[null,null,null,null,null,null,null,null,null,null,null,null,null,null,null,null,null,null,null,null,null,null,null,null,null,null,null,null,null,null,null,null,null,null,null,null,null,null,null,null,null,"18名"]
[null,null,null,null,null,null,null,null,null,null,null,null,null,null,null,null,null,null,null,null,null,null,null,null,null,null,null,null,null,null,null,null,null,null,null,null,null,null,null,null,null,"19名"]
[null,null,null,null,null,null,null,null,null,null,null,null,null,null,null,null,null,null,null,null,null,null,null,null,null,null,null,null,null,null,null,null,null,null,null,null,null,null,null,null,null,"20名"]
[null,null,null,null,null,null,null,null,null,null,null,null,null,null,null,null,null,null,null,null,null,null,null,null,null,null,null,null,null,null,null,null,null,null,null,null,null,null,null,null,null,"21名"]
[null,null,null,null,null,null,null,null,null,null,null,null,null,null,null,null,null,null,null,null,null,null,null,null,null,null,null,null,null,null,null,null,null,null,null,null,null,null,null,null,null,"22名"]
[null,null,null,null,null,null,null,null,null,null,null,null,null,null,null,null,null,null,null,null,null,null,null,null,null,null,null,null,null,null,null,null,null,null,null,null,null,null,null,null,null,"23名"]
[null,null,null,null,null,null,null,null,null,null,null,null,null,null,null,null,null,null,null,null,null,null,null,null,null,null,null,null,null,null,null,null,null,null,null,null,null,null,null,null,null,"24名"]
[null,null,null,null,null,null,null,null,null,null,null,null,null,null,null,null,null,null,null,null,null,null,null,null,null,null,null,null,null,null,null,null,null,null,null,null,null,null,null,null,null,"25名"]
[null,null,null,null,null,null,null,null,null,null,null,null,null,null,null,null,null,null,null,null,null,null,null,null,null,null,null,null,null,null,null,null,null,null,null,null,null,null,null,null,null,"26名"]
[null,null,null,null,null,null,null,null,null,null,null,null,null,null,null,null,null,null,null,null,null,null,null,null,null,null,null,null,null,null,null,null,null,null,null,null,null,null,null,null,null,"27名"]
[null,"活動項目",null,null,null,null,"①　活動推進費　　　②　地域環境保全タイプ（里山保全）　　③　地域保全保全タイプ（侵入竹林）",null,null,null,null,null,null,null,null,null,null,null,null,null,null,null,null,null,null,null,null,null,null,null,null,null,null,null,null,null,null,null,null,null,null,"28名"]
[null,null,null,null,null,null,"④　森林資源利用タイプ　　⑤　森林機能強化タイプ　⑥　教育・研修活動タイプ",null,null,null,null,null,null,null,null,null,null,null,null,null,null,null,null,null,null,null,null,null,null,null,null,null,null,null,null,null,null,null,null,null,null,"29名"]
[null,"（別添１）",null,null,null,null,null,null,null,null,null,null,null,null,null,null,null,null,null,null,null,null,null,null,null,null,null,null,null,null,null,null,null,null,null,null,null,null,null,null,null,"30名"]
[null,"作業写真整理帳",null,null,null,null,null,null,null,null,null,null,null,null,null,null,null,null,null,null,null,null,null,null,null,null,null,null,null,null,null,"No",2]
[]
[null,null,null,null,null,null,null,null,null,null,null,null,null,null,null,null,null,null,null,null,null,null,null,null,{"$f":"Y4","v":"組織名"},null,null,{"$f":"$AB$4","v":0}]
[null,"写真番号："]
[]
[null,null,null,null,null,null,null,null,null,null,null,null,null,null,null,null,null,null,null,null,null,"活動項目をチェックする"]
[]
[]
[]
[]
[null,null,null,null,null,null,null,null,null,null,null,null,null,null,null,null,null,null,null,null,null,"取組内容"]
[]
[]
[]
[]
[]
[]
[]
[]
[]
[]
[]
[]
[null,"写真番号："]
[]
[null,null,null,null,null,null,null,null,null,null,null,null,null,null,null,null,null,null,null,null,null,"活動項目をチェックする"]
[]
[]
[]
[]
[null,null,null,null,null,null,null,null,null,null,null,null,null,null,null,null,null,null,null,null,null,"取組内容"]
[]
[]
[]
[]
[]
[]
[]
[]
[]
[]
[]
[]
[null,"写真番号："]
[]
[null,null,null,null,null,null,null,null,null,null,null,null,null,null,null,null,null,null,null,null,null,"活動項目をチェックする"]
[]
[]
[]
[]
[null,null,null,null,null,null,null,null,null,null,null,null,null,null,null,null,null,null,null,null,null,"取組内容"]
[]
[]
[]
[]
[]
[]
[]
[]
[]
[]
[]
[]
[null,"活動項目",null,null,null,null,"①　活動推進費　　　②　地域環境保全タイプ（里山保全）　　③　地域保全保全タイプ（侵入竹林）"]
[null,null,null,null,null,null,"④　森林資源利用タイプ　　⑤　森林機能強化タイプ　⑥　教育・研修活動タイプ"]
[null,"（別添１）"]
[null,"作業写真整理帳",null,null,null,null,null,null,null,null,null,null,null,null,null,null,null,null,null,null,null,null,null,null,null,null,null,null,null,null,null,"No",3]
[]
[null,null,null,null,null,null,null,null,null,null,null,null,null,null,null,null,null,null,null,null,null,null,null,null,{"$f":"Y70","v":"組織名"},null,null,{"$f":"$AB$4","v":0}]
[null,"写真番号："]
[]
[null,null,null,null,null,null,null,null,null,null,null,null,null,null,null,null,null,null,null,null,null,"活動項目をチェックする"]
[]
[]
[]
[]
[null,null,null,null,null,null,null,null,null,null,null,null,null,null,null,null,null,null,null,null,null,"取組内容"]
[]
[]
[]
[]
[]
[]
[]
[]
[]
[]
[]
[]
[null,"写真番号："]
[]
[null,null,null,null,null,null,null,null,null,null,null,null,null,null,null,null,null,null,null,null,null,"活動項目をチェックする"]
[]
[]
[]
[]
[null,null,null,null,null,null,null,null,null,null,null,null,null,null,null,null,null,null,null,null,null,"取組内容"]
[]
[]
[]
[]
[]
[]
[]
[]
[]
[]
[]
[]
[null,"写真番号："]
[]
[null,null,null,null,null,null,null,null,null,null,null,null,null,null,null,null,null,null,null,null,null,"活動項目をチェックする"]
[]
[]
[]
[]
[null,null,null,null,null,null,null,null,null,null,null,null,null,null,null,null,null,null,null,null,null,"取組内容"]
[]
[]
[]
[]
[]
[]
[]
[]
[]
[]
[]
[]
[null,"活動項目",null,null,null,null,"①　活動推進費　　　②　地域環境保全タイプ（里山保全）　　③　地域保全保全タイプ（侵入竹林）"]
[null,null,null,null,null,null,"④　森林資源利用タイプ　　⑤　森林機能強化タイプ　⑥　教育・研修活動タイプ"]
[null,"（別添１）"]
[null,"作業写真整理帳",null,null,null,null,null,null,null,null,null,null,null,null,null,null,null,null,null,null,null,null,null,null,null,null,null,null,null,null,null,"No",4]
[]
[null,null,null,null,null,null,null,null,null,null,null,null,null,null,null,null,null,null,null,null,null,null,null,null,{"$f":"Y136","v":"組織名"},null,null,{"$f":"$AB$4","v":0}]
[null,"写真番号："]
[]
[null,null,null,null,null,null,null,null,null,null,null,null,null,null,null,null,null,null,null,null,null,"活動項目をチェックする"]
[]
[]
[]
[]
[null,null,null,null,null,null,null,null,null,null,null,null,null,null,null,null,null,null,null,null,null,"取組内容"]
[]
[]
[]
[]
[]
[]
[]
[]
[]
[]
[]
[]
[null,"写真番号："]
[]
[null,null,null,null,null,null,null,null,null,null,null,null,null,null,null,null,null,null,null,null,null,"活動項目をチェックする"]
[]
[]
[]
[]
[null,null,null,null,null,null,null,null,null,null,null,null,null,null,null,null,null,null,null,null,null,"取組内容"]
[]
[]
[]
[]
[]
[]
[]
[]
[]
[]
[]
[]
[null,"写真番号："]
[]
[null,null,null,null,null,null,null,null,null,null,null,null,null,null,null,null,null,null,null,null,null,"活動項目をチェックする"]
[]
[]
[]
[]
[null,null,null,null,null,null,null,null,null,null,null,null,null,null,null,null,null,null,null,null,null,"取組内容"]
[]
[]
[]
[]
[]
[]
[]
[]
[]
[]
[]
[]
[null,"活動項目",null,null,null,null,"①　活動推進費　　　②　地域環境保全タイプ（里山保全）　　③　地域保全保全タイプ（侵入竹林）"]
[null,null,null,null,null,null,"④　森林資源利用タイプ　　⑤　森林機能強化タイプ　⑥　教育・研修活動タイプ"]
[null,"（別添１）"]
[null,"作業写真整理帳",null,null,null,null,null,null,null,null,null,null,null,null,null,null,null,null,null,null,null,null,null,null,null,null,null,null,null,null,null,"No",5]
[]
[null,null,null,null,null,null,null,null,null,null,null,null,null,null,null,null,null,null,null,null,null,null,null,null,{"$f":"Y202","v":"組織名"},null,null,{"$f":"$AB$4","v":0}]
[null,"写真番号："]
[]
[null,null,null,null,null,null,null,null,null,null,null,null,null,null,null,null,null,null,null,null,null,"活動項目をチェックする"]
[]
[]
[]
[]
[null,null,null,null,null,null,null,null,null,null,null,null,null,null,null,null,null,null,null,null,null,"取組内容"]
[]
[]
[]
[]
[]
[]
[]
[]
[]
[]
[]
[]
[null,"写真番号："]
[]
[null,null,null,null,null,null,null,null,null,null,null,null,null,null,null,null,null,null,null,null,null,"活動項目をチェックする"]
[]
[]
[]
[]
[null,null,null,null,null,null,null,null,null,null,null,null,null,null,null,null,null,null,null,null,null,"取組内容"]
[]
[]
[]
[]
[]
[]
[]
[]
[]
[]
[]
[]
[null,"写真番号："]
[]
[null,null,null,null,null,null,null,null,null,null,null,null,null,null,null,null,null,null,null,null,null,"活動項目をチェックする"]
[]
[]
[]
[]
[null,null,null,null,null,null,null,null,null,null,null,null,null,null,null,null,null,null,null,null,null,"取組内容"]
[]
[]
[]
[]
[]
[]
[]
[]
[]
[]
[]
[]
[null,"活動項目",null,null,null,null,"①　活動推進費　　　②　地域環境保全タイプ（里山保全）　　③　地域保全保全タイプ（侵入竹林）"]
[null,null,null,null,null,null,"④　森林資源利用タイプ　　⑤　森林機能強化タイプ　⑥　教育・研修活動タイプ"]
[null,"（別添１）"]
[null,"作業写真整理帳",null,null,null,null,null,null,null,null,null,null,null,null,null,null,null,null,null,null,null,null,null,null,null,null,null,null,null,null,null,"No",6]
[]
[null,null,null,null,null,null,null,null,null,null,null,null,null,null,null,null,null,null,null,null,null,null,null,null,{"$f":"Y268","v":"組織名"},null,null,{"$f":"$AB$4","v":0}]
[null,"写真番号："]
[]
[null,null,null,null,null,null,null,null,null,null,null,null,null,null,null,null,null,null,null,null,null,"活動項目をチェックする"]
[]
[]
[]
[]
[null,null,null,null,null,null,null,null,null,null,null,null,null,null,null,null,null,null,null,null,null,"取組内容"]
[]
[]
[]
[]
[]
[]
[]
[]
[]
[]
[]
[]
[null,"写真番号："]
[]
[null,null,null,null,null,null,null,null,null,null,null,null,null,null,null,null,null,null,null,null,null,"活動項目をチェックする"]
[]
[]
[]
[]
[null,null,null,null,null,null,null,null,null,null,null,null,null,null,null,null,null,null,null,null,null,"取組内容"]
[]
[]
[]
[]
[]
[]
[]
[]
[]
[]
[]
[]
[null,"写真番号："]
[]
[null,null,null,null,null,null,null,null,null,null,null,null,null,null,null,null,null,null,null,null,null,"活動項目をチェックする"]
[]
[]
[]
[]
[null,null,null,null,null,null,null,null,null,null,null,null,null,null,null,null,null,null,null,null,null,"取組内容"]
[]
[]
[]
[]
[]
[]
[]
[]
[]
[]
[]
[]
[null,"活動項目",null,null,null,null,"①　活動推進費　　　②　地域環境保全タイプ（里山保全）　　③　地域保全保全タイプ（侵入竹林）"]
[null,null,null,null,null,null,"④　森林資源利用タイプ　　⑤　森林機能強化タイプ　⑥　教育・研修活動タイプ"]
[null,"（別添１）"]
[null,"作業写真整理帳",null,null,null,null,null,null,null,null,null,null,null,null,null,null,null,null,null,null,null,null,null,null,null,null,null,null,null,null,null,"No",7]
[]
[null,null,null,null,null,null,null,null,null,null,null,null,null,null,null,null,null,null,null,null,null,null,null,null,{"$f":"Y334","v":"組織名"},null,null,{"$f":"AB334","v":0}]
[null,"写真番号："]
[]
[null,null,null,null,null,null,null,null,null,null,null,null,null,null,null,null,null,null,null,null,null,"活動項目をチェックする"]
[]
[]
[]
[]
[null,null,null,null,null,null,null,null,null,null,null,null,null,null,null,null,null,null,null,null,null,"取組内容"]
[]
[]
[]
[]
[]
[]
[]
[]
[]
[]
[]
[]
[null,"写真番号："]
[]
[null,null,null,null,null,null,null,null,null,null,null,null,null,null,null,null,null,null,null,null,null,"活動項目をチェックする"]
[]
[]
[]
[]
[null,null,null,null,null,null,null,null,null,null,null,null,null,null,null,null,null,null,null,null,null,"取組内容"]
[]
[]
[]
[]
[]
[]
[]
[]
[]
[]
[]
[]
[null,"写真番号："]
[]
[null,null,null,null,null,null,null,null,null,null,null,null,null,null,null,null,null,null,null,null,null,"活動項目をチェックする"]
[]
[]
[]
[]
[null,null,null,null,null,null,null,null,null,null,null,null,null,null,null,null,null,null,null,null,null,"取組内容"]
[]
[]
[]
[]
[]
[]
[]
[]
[]
[]
[]
[]
[null,"活動項目",null,null,null,null,"①　活動推進費　　　②　地域環境保全タイプ（里山保全）　　③　地域保全保全タイプ（侵入竹林）"]
[null,null,null,null,null,null,"④　森林資源利用タイプ　　⑤　森林機能強化タイプ　⑥　教育・研修活動タイプ"]
[]
[null,"作業写真整理帳",null,null,null,null,null,null,null,null,null,null,null,null,null,null,null,null,null,null,null,null,null,null,null,null,null,null,null,null,null,"No",8]
[]
[null,null,null,null,null,null,null,null,null,null,null,null,null,null,null,null,null,null,null,null,null,null,null,null,{"$f":"Y400","v":"組織名"},null,null,{"$f":"$AB$4","v":0}]
[null,"写真番号："]
[]
[null,null,null,null,null,null,null,null,null,null,null,null,null,null,null,null,null,null,null,null,null,"活動項目をチェックする"]
[]
[]
[]
[]
[null,null,null,null,null,null,null,null,null,null,null,null,null,null,null,null,null,null,null,null,null,"取組内容"]
[]
[]
[]
[]
[]
[]
[]
[]
[]
[]
[]
[]
[null,"写真番号："]
[]
[null,null,null,null,null,null,null,null,null,null,null,null,null,null,null,null,null,null,null,null,null,"活動項目をチェックする"]
[]
[]
[]
[]
[null,null,null,null,null,null,null,null,null,null,null,null,null,null,null,null,null,null,null,null,null,"取組内容"]
[]
[]
[]
[]
[]
[]
[]
[]
[]
[]
[]
[]
[null,"写真番号："]
[]
[null,null,null,null,null,null,null,null,null,null,null,null,null,null,null,null,null,null,null,null,null,"活動項目をチェックする"]
[]
[]
[]
[]
[null,null,null,null,null,null,null,null,null,null,null,null,null,null,null,null,null,null,null,null,null,"取組内容"]
[]
[]
[]
[]
[]
[]
[]
[]
[]
[]
[]
[]
[null,"活動項目",null,null,null,null,"①　活動推進費　　　②　地域環境保全タイプ（里山保全）　　③　地域保全保全タイプ（侵入竹林）"]
[null,null,null,null,null,null,"④　森林資源利用タイプ　　⑤　森林機能強化タイプ　⑥　教育・研修活動タイプ"]
[null,"（別添１）"]
[null,"作業写真整理帳",null,null,null,null,null,null,null,null,null,null,null,null,null,null,null,null,null,null,null,null,null,null,null,null,null,null,null,null,null,"No",9]
[]
[null,null,null,null,null,null,null,null,null,null,null,null,null,null,null,null,null,null,null,null,null,null,null,null,{"$f":"Y466","v":"組織名"},null,null,{"$f":"AB466","v":0}]
[null,"写真番号："]
[]
[null,null,null,null,null,null,null,null,null,null,null,null,null,null,null,null,null,null,null,null,null,"活動項目をチェックする"]
[]
[]
[]
[]
[null,null,null,null,null,null,null,null,null,null,null,null,null,null,null,null,null,null,null,null,null,"取組内容"]
[]
[]
[]
[]
[]
[]
[]
[]
[]
[]
[]
[]
[null,"写真番号："]
[]
[null,null,null,null,null,null,null,null,null,null,null,null,null,null,null,null,null,null,null,null,null,"活動項目をチェックする"]
[]
[]
[]
[]
[null,null,null,null,null,null,null,null,null,null,null,null,null,null,null,null,null,null,null,null,null,"取組内容"]
[]
[]
[]
[]
[]
[]
[]
[]
[]
[]
[]
[]
[null,"写真番号："]
[]
[null,null,null,null,null,null,null,null,null,null,null,null,null,null,null,null,null,null,null,null,null,"活動項目をチェックする"]
[]
[]
[]
[]
[null,null,null,null,null,null,null,null,null,null,null,null,null,null,null,null,null,null,null,null,null,"取組内容"]
[]
[]
[]
[]
[]
[]
[]
[]
[]
[]
[]
[]
[null,"活動項目",null,null,null,null,"①　活動推進費　　　②　地域環境保全タイプ（里山保全）　　③　地域保全保全タイプ（侵入竹林）"]
[null,null,null,null,null,null,"④　森林資源利用タイプ　　⑤　森林機能強化タイプ　⑥　教育・研修活動タイプ"]
[null,"（別添１）"]
[null,"作業写真整理帳",null,null,null,null,null,null,null,null,null,null,null,null,null,null,null,null,null,null,null,null,null,null,null,null,null,null,null,null,null,"No",10]
[]
[null,null,null,null,null,null,null,null,null,null,null,null,null,null,null,null,null,null,null,null,null,null,null,null,{"$f":"Y532","v":"組織名"},null,null,{"$f":"AB532","v":0}]
[null,"写真番号："]
[]
[null,null,null,null,null,null,null,null,null,null,null,null,null,null,null,null,null,null,null,null,null,"活動項目をチェックする"]
[]
[]
[]
[]
[null,null,null,null,null,null,null,null,null,null,null,null,null,null,null,null,null,null,null,null,null,"取組内容"]
[]
[]
[]
[]
[]
[]
[]
[]
[]
[]
[]
[]
[null,"写真番号："]
[]
[null,null,null,null,null,null,null,null,null,null,null,null,null,null,null,null,null,null,null,null,null,"活動項目をチェックする"]
[]
[]
[]
[]
[null,null,null,null,null,null,null,null,null,null,null,null,null,null,null,null,null,null,null,null,null,"取組内容"]
[]
[]
[]
[]
[]
[]
[]
[]
[]
[]
[]
[]
[null,"写真番号："]
[]
[null,null,null,null,null,null,null,null,null,null,null,null,null,null,null,null,null,null,null,null,null,"活動項目をチェックする"]
[]
[]
[]
[]
[null,null,null,null,null,null,null,null,null,null,null,null,null,null,null,null,null,null,null,null,null,"取組内容"]
[]
[]
[]
[]
[]
[]
[]
[]
[]
[]
[]
[]
[null,"活動項目",null,null,null,null,"①　活動推進費　　　②　地域環境保全タイプ（里山保全）　　③　地域保全保全タイプ（侵入竹林）"]
[null,null,null,null,null,null,"④　森林資源利用タイプ　　⑤　森林機能強化タイプ　⑥　教育・研修活動タイプ"]
[null,"（別添１）"]
[null,"作業写真整理帳",null,null,null,null,null,null,null,null,null,null,null,null,null,null,null,null,null,null,null,null,null,null,null,null,null,null,null,null,null,"No",11]
[]
[null,null,null,null,null,null,null,null,null,null,null,null,null,null,null,null,null,null,null,null,null,null,null,null,{"$f":"Y598","v":"組織名"},null,null,{"$f":"AB598","v":0}]
[null,"写真番号："]
[]
[null,null,null,null,null,null,null,null,null,null,null,null,null,null,null,null,null,null,null,null,null,"活動項目をチェックする"]
[]
[]
[]
[]
[null,null,null,null,null,null,null,null,null,null,null,null,null,null,null,null,null,null,null,null,null,"取組内容"]
[]
[]
[]
[]
[]
[]
[]
[]
[]
[]
[]
[]
[null,"写真番号："]
[]
[null,null,null,null,null,null,null,null,null,null,null,null,null,null,null,null,null,null,null,null,null,"活動項目をチェックする"]
[]
[]
[]
[]
[null,null,null,null,null,null,null,null,null,null,null,null,null,null,null,null,null,null,null,null,null,"取組内容"]
[]
[]
[]
[]
[]
[]
[]
[]
[]
[]
[]
[]
[null,"写真番号："]
[]
[null,null,null,null,null,null,null,null,null,null,null,null,null,null,null,null,null,null,null,null,null,"活動項目をチェックする"]
[]
[]
[]
[]
[null,null,null,null,null,null,null,null,null,null,null,null,null,null,null,null,null,null,null,null,null,"取組内容"]
[]
[]
[]
[]
[]
[]
[]
[]
[]
[]
[]
[]
[null,"活動項目",null,null,null,null,"①　活動推進費　　　②　地域環境保全タイプ（里山保全）　　③　地域保全保全タイプ（侵入竹林）"]
[null,null,null,null,null,null,"④　森林資源利用タイプ　　⑤　森林機能強化タイプ　⑥　教育・研修活動タイプ"]

{"sheet":"Sheet1","index":1,"n_rows":52,"n_cols":34,"rows_kept":52,"cut":false,"hidden":false,"merged":[[46,1,63,18],[46,21,50,25],[4,1,5,5],[24,1,25,5],[44,1,45,5],[4,6,5,10],[24,6,25,10],[44,6,45,10],[6,1,23,18],[26,1,43,18],[51,21,63,25],[11,26,23,34],[31,26,43,34],[1,32,1,33],[51,26,63,34],[3,27,3,33],[6,21,10,25],[11,21,23,25],[26,21,30,25],[31,21,43,25]]}
[null,"（別添１）"]
[null,"作業写真整理帳",null,null,null,null,null,null,null,null,null,null,null,null,null,null,null,null,null,null,null,null,null,null,null,null,null,null,null,null,null,"No"]
[]
[null,null,null,null,null,null,null,null,null,null,null,null,null,null,null,null,null,null,null,null,null,null,null,null,"組織名"]
[null,"写真番号："]
[]
[null,null,null,null,null,null,null,null,null,null,null,null,null,null,null,null,null,null,null,null,null,"活動項目をチェックする"]
[null,null,null,null,null,null,null,null,null,null,null,null,null,null,null,null,null,null,null,null,null,null,null,null,null,null,"①","□",null,"②","□",null,"③","□"]
[]
[null,null,null,null,null,null,null,null,null,null,null,null,null,null,null,null,null,null,null,null,null,null,null,null,null,null,"④","□",null,"⑤","□"]
[]
[null,null,null,null,null,null,null,null,null,null,null,null,null,null,null,null,null,null,null,null,null,"取組内容"]
[]
[]
[]
[]
[]
[]
[]
[]
[]
[]
[]
[]
[null,"写真番号："]
[]
[null,null,null,null,null,null,null,null,null,null,null,null,null,null,null,null,null,null,null,null,null,"活動項目をチェックする"]
[null,null,null,null,null,null,null,null,null,null,null,null,null,null,null,null,null,null,null,null,null,null,null,null,null,null,"①","□",null,"②","□",null,"③","□"]
[]
[null,null,null,null,null,null,null,null,null,null,null,null,null,null,null,null,null,null,null,null,null,null,null,null,null,null,"④","□",null,"⑤","□"]
[]
[null,null,null,null,null,null,null,null,null,null,null,null,null,null,null,null,null,null,null,null,null,"取組内容"]
[]
[]
[]
[]
[]
[]
[]
[]
[]
[]
[]
[]
[null,"写真番号："]
[]
[null,null,null,null,null,null,null,null,null,null,null,null,null,null,null,null,null,null,null,null,null,"活動項目をチェックする"]
[null,null,null,null,null,null,null,null,null,null,null,null,null,null,null,null,null,null,null,null,null,null,null,null,null,null,"①","□",null,"②","□",null,"③","□"]
[]
[null,null,null,null,null,null,null,null,null,null,null,null,null,null,null,null,null,null,null,null,null,null,null,null,null,null,"④","□",null,"⑤","□"]
[]
[null,null,null,null,null,null,null,null,null,null,null,null,null,null,null,null,null,null,null,null,null,"取組内容"]